[Event "Chinese League Div-A Rapid 2022"]
[Site "Fuling,Chongqing"]
[Date "2022.09.11"]
[Round "5.15"]
[White "Shao, Qiyu"]
[Black "Bai, Xue"]
[Result "0-1"]
[ECO "A09"]
[WhiteElo "1467"]
[BlackElo "2123"]
[Annotator "NA RC"]
[PlyCount "85"]
[EventDate "2022.09.07"]
[EventType "team-tourn"]
[EventCountry "CHN"]
[SourceTitle "playchess.com"]
[Source "ChessBase"]
[SourceQuality "1"]
[TimeControl "1500+10"]

1. c4 {[%emt 0:00:03]} e6 {[%emt 0:00:02]} 2. g3 {[%emt 0:00:05]} d5 {[%emt 0:00:03]} 3. Bg2 {[%emt 0:00:05]} Nf6 {[%emt 0:00:02]} 4. Nf3 {[%emt 0:00:17]} d4 {[%emt 0:00:07]} 5. d3 {[%emt 0:00:33]} c5 {[%emt 0:00:05]} 6. O-O {[%emt 0:00:14]} Nc6 {[%emt 0:00:07]} 7. a3 {[%emt 0:00:14]} Be7 {[%emt 0:00:22]} 8. Bf4 {[%emt 0:02:43]} Bd6 {[%emt 0:02:09]} 9. Bxd6 {[%emt 0:00:41]} Qxd6 {[%emt 0:00:01]} 10. Nbd2 {[%emt 0:00:16]} e5 {[%emt 0:00:15]} 11. Ng5 {[%emt 0:01:35]} O-O {[%emt 0:01:12]} 12. f4 {[%emt 0:01:53]} Ng4 {[%emt 0:01:34]} 13. Qb3 {[%emt 0:06:18]} Ne3 {[%emt 0:00:27]} 14. Rf2 {[%emt 0:00:01]} exf4 {[%emt 0:02:08]} 15. Rxf4 {[%emt 0:00:16]} Nxg2 {[%emt 0:00:39]} 16. Kxg2 {[%emt 0:00:03]} Qe7 {[%emt 0:00:32]} 17. Nde4 {[%emt 0:05:07]} f5 {[%emt 0:00:58]} 18. Raf1 {[%emt 0:01:24]} h6 {[%emt 0:00:50]} 19. Nh3 {[%emt 0:00:22]} Bd7 {[%emt 0:00:17]} 20. Nd2 {[%emt 0:01:19]} Ne5 {[%emt 0:01:55]} 21. Kg1 {[%emt 0:02:35]} g5 {[%emt 0:00:50]} 22. R4f2 {[%emt 0:00:22]} Bc6 {[%emt 0:00:53]} 23. Rxf5 {[%emt 0:02:20]} Rxf5 {[%emt 0:00:02]} 24. Rxf5 {[%emt 0:00:01]} Qe6 {[%emt 0:00:09]} 25. Rxe5 {[%emt 0:00:14]} Qxe5 {[%emt 0:00:01]} 26. Qd1 {[%emt 0:00:07]} Qe3+ {[%emt 0:00:03]} 27. Nf2 {[%emt 0:00:20]} Rf8 {[%emt 0:00:12]} 28. Qe1 {[%emt 0:00:03]} Rxf2 {[%emt 0:00:58]} 29. Qxf2 {[%emt 0:00:01]} Qxd2 {[%emt 0:00:02]} 30. Qf6 {[%emt 0:00:11]} Qe1+ {[%emt 0:01:16]} 31. Qf1 {[%emt 0:00:13]} Qxf1+ {[%emt 0:00:30]} 32. Kxf1 {[%emt 0:00:02]} Kf7 {[%emt 0:00:20]} 33. Kf2 {[%emt 0:00:09]} Kf6 {[%emt 0:00:01]} 34. e3 {[%emt 0:00:20]} Ke5 {[%emt 0:00:10]} 35. b4 {[%emt 0:00:17]} cxb4 {[%emt 0:00:07]} 36. axb4 {[%emt 0:00:02]} Ba4 {[%emt 0:00:34]} 37. Ke2 {[%emt 0:00:16]} Bd7 {[%emt 0:00:34]} 38. Kd2 {[%emt 0:00:15]} a6 {[%emt 0:00:11]} 39. Ke2 {[%emt 0:00:05]} b6 {[%emt 0:00:02]} 40. Kd2 {[%emt 0:00:15]} a5 {[%emt 0:00:07]} 41. c5 {[%emt 0:00:09]} bxc5 {[%emt 0:01:11]} 42. bxa5 {[%emt 0:00:02]} Bb5 {[%emt 0:00:04]} 43. h4 {[%emt 0:00:22]} 0-1

[Event "Chinese League Div-A Rapid 2022"]
[Site "Fuling,Chongqing"]
[Date "2022.09.11"]
[Round "5.16"]
[White "Xu, Xiangyu"]
[Black "Bu, Xiangzhi"]
[Result "1/2-1/2"]
[ECO "E49"]
[WhiteElo "2571"]
[BlackElo "2709"]
[Annotator "TA"]
[PlyCount "88"]
[EventDate "2022.09.07"]
[EventType "team-tourn"]
[EventCountry "CHN"]
[SourceTitle "playchess.com"]
[Source "ChessBase"]
[SourceQuality "1"]
[TimeControl "1500+10"]

{[%evp 20,88,25,0,48,45,81,82,85,106,100,58,93,33,64,77,143,167,358,373,424,412,382,60,67,-27,424,405,739,736,701,698,890,120,94,0,850,658,697,255,231,35,35,32,35,35,29,9,11,31,35,33,33,35,33,0,0,0,28,28,28,28,28,28,85,64,55,20,20,20,20]} 1. d4 {[%emt 0:00:03]} Nf6 {[%emt 0:00:01]} 2. c4 {[%emt 0:00:02]} e6 {[%emt 0:00:01]} 3. Nc3 {[%emt 0:00:02]} Bb4 {[%emt 0:00:02]} 4. e3 {[%emt 0:00:01]} O-O {[%emt 0:00:03]} 5. Bd3 {[%emt 0:00:03]} d5 {[%emt 0:00:01]} 6. a3 {[%emt 0:00:02]} Bxc3+ {[%emt 0:00:04]} 7. bxc3 {[%emt 0:00:02]} dxc4 {[%emt 0:00:02]} 8. Bxc4 {[%emt 0:00:03]} c5 {[%emt 0:00:01]} 9. Ne2 {[%emt 0:00:05]} Qc7 {[%emt 0:00:25]} 10. Bd3 {[%emt 0:00:04]} b6 {[%emt 0:00:08]} 11. O-O {[%emt 0:00:50]} e5 {[%emt 0:01:02] E49: Nimzo-Indian: Rubinstein: 5 Bd3 d5 6 a3 Bxc3+ 7 bxc3.} (11... c4 12. Bc2 $14) (11... Nc6 $11 {was preferrable.}) 12. e4 $14 {[%emt 0:01:26]} Bb7 {[%emt 0:01:00] [#]} 13. d5 $146 {[%emt 0:00:16]} ({Predecessor:} 13. dxe5 Ng4 14. f4 Rd8 15. Ng3 c4 16. Qxg4 cxd3 17. Nh5 Qc5+ 18. Kh1 Qf8 19. Bd2 {½-½ (41) Di Benedetto,E (2401)-Albornoz Cabrera,C (2581) New Delhi 2019}) 13... c4 {[%emt 0:00:04] White is better.} 14. Bc2 {[%emt 0:00:09]} Nbd7 {[%emt 0:00:01]} 15. f4 {[%emt 0:00:58]} Nc5 {[%emt 0:03:34]} 16. fxe5 {[%emt 0:02:24]} (16. Ng3 $1 $16) 16... Qxe5 {[%emt 0:01:58]} 17. Bf4 {[%emt 0:00:02]} Qe7 {[%emt 0:00:02]} ({Black should try} 17... Qh5) 18. Ng3 $1 $16 {[%emt 0:00:07]} (18. d6 $6 Qe8 $11) 18... Nfxe4 {[%emt 0:01:03]} (18... Ncxe4 $2 19. Nf5 Qd7 20. Bxe4) (18... Nd3) 19. Nf5 $18 {[%emt 0:05:12]} (19. Qh5 g6 20. Qe2 Bxd5 21. Bxe4 Nxe4 22. Nxe4 Bxe4 23. Qxc4 Rac8 $17) 19... Qf6 {[%emt 0:04:00]} 20. Be3 {[%emt 0:00:02] This bishop pair is nice.} Nxc3 {[%emt 0:00:03]} 21. Qg4 $40 {[%emt 0:00:02][%mdl 128] Black needs to defend precisely.} ({White has to play} 21. Qh5 $18 {[%cal Of5e7] White wants to mate with Ne7+!} g6 22. Nh6+ Kg7 23. Qg4) 21... Bc8 $1 $14 {[%emt 0:00:02]} 22. Rae1 {[%emt 0:00:02] White is more active.} (22. Qxc4 $14 Ba6 23. Qg4) 22... Bxf5 $4 {[%emt 0:03:33][%mdl 8192]} (22... Nxd5 $11 23. Bxc5 bxc5) 23. Rxf5 $18 {[%emt 0:00:15]} Qg6 {[%emt 0:00:01] [#]} (23... Qe7 $142) 24. Rg5 $1 {[%emt 0:00:18]} h5 {[%emt 0:00:16] [#]} 25. Qd4 $1 {[%emt 0:03:29]} Nb5 {[%emt 0:00:06] [#] ...Qxg5 is the strong threat.} (25... Qh6 26. Qxc3) 26. Qd1 $2 {[%emt 0:00:03]} (26. Qh4 $1 $18 {and White stays clearly on top.} Qxg5 (26... Nd3 27. Rxg6) 27. Bxg5) 26... Nc3 $16 {[%emt 0:03:21]} 27. Qd4 {[%emt 0:07:20][%mdl 8192]} Nb5 $18 {[%emt 0:00:01] Strongly threatening ...Qxg5.} 28. Qxc4 {[%emt 0:00:11]} Nd6 {[%emt 0:01:28] [#]} 29. Qe2 {[%emt 0:01:12]} ({Weaker is} 29. Bxg6 Nxc4 30. Bxc5 (30. Bxh5 Rae8 $15) 30... bxc5 31. Bxh5 Nd6 $15) (29. Qd4 $1 Nb5 30. Qb2 (30. Bxg6 Nxd4 31. Bxd4 fxg6 $16)) 29... Qf6 {[%emt 0:00:06] [#]} 30. Bxc5 {[%emt 0:03:48]} bxc5 $14 {[%emt 0:03:56]} 31. Qxh5 {[%emt 0:00:08][%csl Gc2][%cal Rh5h7] Dancing on a razor blade.} Qd4+ {[%emt 0:00:01]} 32. Kh1 {[%emt 0:00:27][%csl Gc2][%cal Rh5h7]} f5 $1 {[%emt 0:00:01]} 33. Bxf5 {[%emt 0:01:13]} Nxf5 {[%emt 0:00:15]} 34. Rxf5 {[%emt 0:00:02]} Rxf5 {[%emt 0:00:10]} 35. Qxf5 $11 {[%emt 0:00:01][%mdl 4096] Endgame KQR-KQR} Rf8 $1 {[%emt 0:00:01]} 36. Qe6+ {[%emt 0:00:04]} Kh7 {[%emt 0:00:03]} 37. Qh3+ {[%emt 0:00:28]} Kg8 {[%emt 0:00:01]} 38. Qe6+ {[%emt 0:00:01]} Kh7 $1 {[%emt 0:00:01]} 39. h3 {[%emt 0:00:27]} Rf6 {[%emt 0:00:20]} 40. Qe4+ {[%emt 0:00:12]} Qxe4 {[%emt 0:00:07]} 41. Rxe4 {[%emt 0:00:02]} Rf1+ {[%emt 0:02:59]} 42. Kh2 {[%emt 0:00:01]} Rd1 {[%emt 0:00:01]} 43. Ra4 {[%emt 0:00:12]} Rxd5 {[%emt 0:00:02]} 44. Rxa7 {[%emt 0:00:06]} c4 {[%emt 0:00:02] Black escapes into a draw.  Weighted Error Value: White=0.79/Black=0.37} 1/2-1/2

[Event "Chinese League Div-A Rapid 2022"]
[Site "Fuling,Chongqing"]
[Date "2022.09.11"]
[Round "5.17"]
[White "Li, Di"]
[Black "Zeng, Chongsheng"]
[Result "1-0"]
[ECO "D38"]
[WhiteElo "2575"]
[BlackElo "2597"]
[Annotator "TA"]
[PlyCount "89"]
[EventDate "2022.09.07"]
[EventType "team-tourn"]
[EventCountry "CHN"]
[SourceTitle "playchess.com"]
[Source "ChessBase"]
[SourceQuality "1"]
[TimeControl "1500+10"]

{[%evp 18,89,6,0,2,0,7,4,0,2,10,14,43,43,52,58,44,43,51,53,44,44,52,46,27,27,18,15,110,110,120,126,226,215,188,171,171,171,186,152,141,114,271,246,315,256,232,225,400,406,428,428,1188,1151,1055,712,1447,1229,29978,29979,29979,29980,29980,29981,29981,29982,29982,29983,29984,29985,29985,29986,29986,357]} 1. c4 {[%emt 0:00:02]} Nf6 {[%emt 0:00:05]} 2. Nc3 {[%emt 0:00:06]} e6 {[%emt 0:00:38]} 3. Nf3 {[%emt 0:00:30]} d5 {[%emt 0:00:03]} 4. d4 {[%emt 0:00:02]} Bb4 {[%emt 0:00:07]} 5. Bg5 {[%emt 0:01:04]} h6 {[%emt 0:00:03]} 6. Bxf6 {[%emt 0:00:06]} Qxf6 {[%emt 0:00:02]} 7. Qb3 {[%emt 0:00:08]} c5 {[%emt 0:00:12]} 8. cxd5 {[%emt 0:00:03]} exd5 {[%emt 0:00:04]} 9. a3 {[%emt 0:00:03]} Bxc3+ {[%emt 0:00:41]} 10. Qxc3 {[%emt 0:00:03]} c4 {[%emt 0:00:17] D38: Queen's Gambit Declined: Ragozin Defence (4 Nf3 Bb4).} 11. b3 {[%emt 0:00:05]} Be6 {[%emt 0:04:32]} 12. bxc4 {[%emt 0:00:05]} dxc4 {[%emt 0:00:49] The position is equal.} 13. e4 {[%emt 0:00:11]} O-O {[%emt 0:00:20]} 14. Be2 {[%emt 0:00:42]} (14. Bxc4 $2 Rc8 15. O-O Nd7 $19) 14... Nc6 {[%emt 0:02:28]} 15. Rc1 $1 {[%emt 0:00:04][%cal Ba1c1,Bc1c3,Bc3e3][%mdl 32] And now d5 would win.} (15. Bxc4 Nxd4 $1 16. Qxd4 (16. Nxd4 Rac8 $17) 16... Qxd4 17. Nxd4 Bxc4 $11) 15... Bg4 {[%emt 0:01:43]} 16. d5 {[%emt 0:00:07] aiming for Qxf6.} Qxc3+ {[%emt 0:00:25]} 17. Rxc3 {[%emt 0:00:04] [#]} Bxf3 $146 {[%emt 0:00:10]} ({Predecessor:} 17... Na5 18. Nd4 Rfe8 19. Re3 Bd7 20. Kd2 Rac8 21. Kc3 Rc5 22. Rb1 b6 23. Rb4 Rec8 {1-0 (37) Li,D (2459)-Cornette,M (2602) Fornebu 2017}) 18. gxf3 {[%emt 0:00:11]} Na5 {[%emt 0:00:27]} 19. Kd2 $36 {[%emt 0:00:47][%mdl 2048] White is more active.} ({Don't blunder} 19. Bxc4 $2 Rfc8 20. a4 Nxc4 $19) 19... b5 {[%emt 0:01:40]} 20. f4 {[%emt 0:01:20]} Rad8 {[%emt 0:03:03]} 21. f5 {[%emt 0:03:20]} Rfe8 {[%emt 0:00:33]} 22. Re3 {[%emt 0:01:13]} Nb3+ {[%emt 0:00:51]} (22... Nb7 $11) 23. Kc3 $16 {[%emt 0:00:05] Rd1 is the strong threat.} Nc5 {[%emt 0:00:05]} 24. Kd4 {[%emt 0:00:35]} Nb3+ {[%emt 0:00:29] [#]} (24... Nb7 $16) 25. Rxb3 $1 $18 {[%emt 0:02:24][%mdl 512]} cxb3 {[%emt 0:00:01][%mdl 4096] Endgame KRR-KRB} 26. Rb1 {[%emt 0:00:08]} a6 {[%emt 0:00:51]} 27. Rxb3 {[%emt 0:00:19]} Rc8 {[%emt 0:00:40]} 28. Bd3 {[%emt 0:00:18][%mdl 1024] Against Rc2. White has strong compensation.} Rc1 {[%emt 0:02:28]} 29. e5 {[%emt 0:00:37]} Rec8 $2 {[%emt 0:00:24] Black cannot hold the game after this.} (29... Rb8 $16 {was worth a try.}) 30. d6 {[%emt 0:00:15]} Kf8 {[%emt 0:01:07]} 31. a4 {[%emt 0:01:36]} ({But not} 31. d7 $2 Rd8 32. e6 Ke7 $17) 31... bxa4 {[%emt 0:01:21]} 32. Ra3 {[%emt 0:00:08]} f6 $2 {[%emt 0:01:51]} (32... Rh1 33. Rxa4 Ra8) 33. f4 {[%emt 0:00:19][%cal Bf2f4,Bf4e5,Be5e6][%mdl 32]} fxe5+ {[%emt 0:01:28]} 34. fxe5 {[%emt 0:00:03]} Rg1 {[%emt 0:00:07]} (34... Rd1 $142 35. Rxa4 Rb8) 35. Rxa4 {[%emt 0:01:13]} Rg4+ {[%emt 0:00:35]} 36. Be4 {[%emt 0:00:01]} Rc1 {[%emt 0:00:05]} 37. e6 {[%emt 0:00:55]} a5 {[%emt 0:00:24]} 38. Rxa5 {[%emt 0:02:05] White mates.} Rd1+ {[%emt 0:00:01]} 39. Ke5 {[%emt 0:00:57][%cal Ra5a8]} Rxe4+ {[%emt 0:00:02]} 40. Kxe4 {[%emt 0:00:01][%cal Ra5a8]} Rxd6 {[%emt 0:00:01] KR-KR} 41. Ra8+ {[%emt 0:00:02]} Ke7 {[%emt 0:00:02]} 42. Ra7+ {[%emt 0:00:01]} Kf8 {[%emt 0:00:06]} 43. Rf7+ {[%emt 0:00:02]} Kg8 {[%emt 0:00:05]} 44. Rd7 {[%emt 0:00:03]} Ra6 {[%emt 0:00:07]} 45. Rd8+ {[%emt 0:00:02] Weighted Error Value: White=0.04 (flawless) /Black=0.42} 1-0

[Event "Chinese League Div-A Rapid 2022"]
[Site "Fuling,Chongqing"]
[Date "2022.09.11"]
[Round "5.18"]
[White "Zhao, Yuanhe"]
[Black "Liu, Yan"]
[Result "1/2-1/2"]
[ECO "A30"]
[WhiteElo "2440"]
[BlackElo "2530"]
[Annotator "TA"]
[PlyCount "37"]
[EventDate "2022.09.07"]
[EventType "team-tourn"]
[EventCountry "CHN"]
[SourceTitle "playchess.com"]
[Source "ChessBase"]
[SourceQuality "1"]
[TimeControl "1500+10"]

{[%evp 20,37,-6,-6,10,-4,0,10,10,-7,0,0,0,0,0,0,0,0,-1,-10]} 1. Nf3 {[%emt 0:00:02]} Nf6 {[%emt 0:00:03]} 2. c4 {[%emt 0:00:02]} b6 {[%emt 0:00:07]} 3. b3 {[%emt 0:00:24]} Bb7 {[%emt 0:00:55]} 4. Bb2 {[%emt 0:00:02]} g6 {[%emt 0:00:17]} 5. e3 {[%emt 0:00:24]} Bg7 {[%emt 0:00:10]} 6. Be2 {[%emt 0:00:01]} c5 {[%emt 0:00:53]} 7. O-O {[%emt 0:00:42]} O-O {[%emt 0:00:08]} 8. d4 {[%emt 0:00:03]} cxd4 {[%emt 0:00:32]} 9. Nxd4 {[%emt 0:00:08]} Nc6 {[%emt 0:01:14]} 10. Nd2 {[%emt 0:02:35]} Nxd4 {[%emt 0:01:17]} 11. Bxd4 {[%emt 0:00:02] The position is equal.} d5 {[%emt 0:00:59] A30: Symmetrical English: Double Fianchetto and Hedgehog.} 12. Rc1 {[%emt 0:00:06]} dxc4 {[%emt 0:01:13]} 13. Nxc4 {[%emt 0:00:04]} Rc8 {[%emt 0:00:31]} ({Don't play} 13... Qd5 14. Bf3 Ne4 15. Nd2 $16) 14. Bf3 {[%emt 0:00:47]} Bxf3 {[%emt 0:00:54]} 15. Qxf3 {[%emt 0:00:03]} Qd5 {[%emt 0:00:08] [#]} 16. Qxd5 $146 {[%emt 0:00:52]} ({Predecessor:} 16. Rfd1 Qxf3 17. gxf3 Rc7 {½-½ (18) Hort,V (2595)-Uhlmann,W (2510) Sarajevo 1980}) 16... Nxd5 {[%emt 0:00:03]} 17. Bxg7 {[%emt 0:00:04]} Kxg7 {[%emt 0:00:05]} 18. Rfd1 {[%emt 0:00:21]} Rfd8 {[%emt 0:00:48]} 19. a4 {[%emt 0:03:30] Not much happened in this game.  Weighted Error Value: White=0.06 (flawless) /Black=0.04 (flawless)} 1/2-1/2

[Event "Chinese League Div-A Rapid 2022"]
[Site "Fuling,Chongqing"]
[Date "2022.09.11"]
[Round "5.19"]
[White "Huang, Qian"]
[Black "Ren, Xiaoyi"]
[Result "1-0"]
[ECO "A11"]
[WhiteElo "2433"]
[BlackElo "2250"]
[Annotator "TA"]
[PlyCount "119"]
[EventDate "2022.09.07"]
[EventType "team-tourn"]
[EventCountry "CHN"]
[SourceTitle "playchess.com"]
[Source "ChessBase"]
[SourceQuality "1"]
[TimeControl "1500+10"]

{[%evp 14,119,27,29,64,47,109,113,110,110,123,123,119,113,130,118,118,120,145,153,156,124,154,122,131,136,141,127,124,124,124,127,133,127,137,130,152,147,157,160,176,177,177,176,179,188,195,202,350,352,483,457,419,243,437,408,420,289,291,293,277,277,269,229,225,221,217,214,222,214,335,344,451,445,454,444,477,420,475,288,587,277,591,587,5056,573,551,487,518,472,440,192,513,272,270,255,543,516,945,900,29977,29978,29990,29991,29995,29996,29998,29999]} 1. c4 {[%emt 0:00:02]} Nf6 {[%emt 0:00:10]} 2. g3 {[%emt 0:00:11]} c6 {[%emt 0:00:12]} 3. Bg2 {[%emt 0:00:06]} d5 {[%emt 0:00:02]} 4. Nf3 {[%emt 0:00:08]} g6 {[%emt 0:00:04]} 5. b3 {[%emt 0:00:34]} Bg7 {[%emt 0:00:07]} 6. Bb2 {[%emt 0:00:01]} O-O {[%emt 0:00:03]} 7. O-O {[%emt 0:00:03]} a5 {[%emt 0:00:05]} 8. Nc3 {[%emt 0:00:56][%cal Bb1c3,Bc3a4,Ba4c5][%mdl 32]} a4 {[%emt 0:01:50] A11: English Opening: 1...c6.} 9. Nxa4 {[%emt 0:01:21]} b5 {[%emt 0:00:30]} ({Better is} 9... dxc4 $14 10. bxc4 Qa5) 10. cxb5 $16 {[%emt 0:01:35]} cxb5 {[%emt 0:00:02] White is better.} 11. Nc5 {[%emt 0:00:03]} Nc6 {[%emt 0:01:06] [#]} 12. a3 $146 {[%emt 0:03:28]} ({Predecessor:} 12. Ne5 Qd6 13. Nxc6 Qxc5 14. Ne5 b4 15. Qb1 Bf5 16. d3 d4 17. Nc6 Nd7 18. Qe1 {1-0 (35) Kovacevic,B (2396)-Galic,I (2428) Mali Losinj 2021}) 12... Re8 {[%emt 0:00:57]} 13. Ne5 {[%emt 0:01:17][%cal Bf3e5,Be5c6,Bc6b4,Bb4d5][%mdl 32]} Qb6 {[%emt 0:00:55] And now ...Nxe5 would win.} 14. Nxc6 {[%emt 0:00:49] White is more active.} Qxc5 {[%emt 0:01:30]} 15. Nb4 {[%emt 0:03:20]} Bf5 {[%emt 0:03:11]} 16. Rc1 {[%emt 0:00:37]} Qd6 {[%emt 0:00:09]} 17. Rc6 {[%emt 0:01:36]} Qd7 {[%emt 0:00:12]} 18. Bxf6 {[%emt 0:01:02]} Bxf6 {[%emt 0:00:04] [#]} 19. Nxd5 $1 {[%emt 0:00:15]} Bh3 {[%emt 0:04:00]} 20. Nb6 {[%emt 0:03:34]} Qb7 {[%emt 0:00:40] [#] aiming for ...Bxg2.} 21. Bxh3 {[%emt 0:02:57]} Qxc6 {[%emt 0:00:04]} 22. Nxa8 {[%emt 0:00:02]} Qxa8 {[%emt 0:00:01]} 23. a4 {[%emt 0:00:10]} bxa4 {[%emt 0:01:17]} 24. bxa4 {[%emt 0:00:01]} h5 {[%emt 0:00:10]} 25. d4 {[%emt 0:01:37]} h4 {[%emt 0:00:08]} 26. e3 {[%emt 0:00:11]} hxg3 {[%emt 0:00:04]} 27. hxg3 {[%emt 0:00:01]} Kg7 {[%emt 0:00:01]} 28. Bg2 {[%emt 0:00:11]} Qa5 {[%emt 0:00:12]} 29. Qb3 {[%emt 0:00:07]} Rc8 {[%emt 0:01:28]} 30. Qb5 {[%emt 0:00:37]} Qd2 {[%emt 0:00:37]} (30... Qxb5 {keeps fighting.} 31. axb5 Rb8) 31. a5 $18 {[%emt 0:00:05][%cal Ba4a5,Ba5a6][%mdl 32]} Rc2 {[%emt 0:00:03]} 32. a6 {[%emt 0:00:10]} Ra2 {[%emt 0:00:03]} 33. Qb6 {[%emt 0:00:35]} (33. Bd5 $142 Qa5 34. Qd7) 33... Bg5 $2 {[%emt 0:00:31]} (33... Qa5 34. Qxa5 Rxa5) 34. Qc5 {[%emt 0:02:36]} Qa5 {[%emt 0:05:50]} 35. Qxa5 {[%emt 0:00:10]} Rxa5 {[%emt 0:00:02][%mdl 4096] Endgame KRB-KRB} 36. Bb7 {[%emt 0:00:03]} ({Resist} 36. f4 Bf6 37. Bb7 e6 $18) 36... e6 {[%emt 0:00:14]} 37. Rc1 {[%emt 0:00:11]} Bd8 {[%emt 0:00:22]} 38. Kg2 {[%emt 0:00:31]} Kf6 {[%emt 0:00:15]} 39. Kf3 {[%emt 0:00:07]} Ke7 {[%emt 0:00:05]} 40. Rc2 {[%emt 0:00:12]} Bb6 {[%emt 0:00:19]} 41. g4 {[%emt 0:00:10]} g5 {[%emt 0:00:23]} (41... Kd8 {might work better.} 42. Rc6 Ba7 43. Rc8+ Kd7) 42. Rc6 {[%emt 0:00:04]} Bd8 {[%emt 0:00:31]} 43. Rc5 {[%emt 0:00:05] White wants to mate with Rxa5.} Ra2 {[%emt 0:00:17]} 44. Rxg5 {[%emt 0:00:11]} Kd6 {[%emt 0:00:02]} 45. Rc5 {[%emt 0:00:11]} Bh4 {[%emt 0:00:07]} 46. Rc8 {[%emt 0:00:22]} Rxf2+ {[%emt 0:00:21]} 47. Ke4 {[%emt 0:00:01]} f5+ $2 {[%emt 0:00:43]} (47... Ra2 48. Rc6+ Kd7) 48. gxf5 {[%emt 0:00:03]} exf5+ {[%emt 0:00:01]} 49. Kd3 {[%emt 0:00:01]} Ra2 {[%emt 0:00:02]} 50. Rc6+ {[%emt 0:00:36]} Kd7 {[%emt 0:00:07]} 51. Rc5 {[%emt 0:00:09] Prevents Ra5.} Ra3+ {[%emt 0:00:06]} 52. Rc3 {[%emt 0:00:12]} (52. Kc4 $142) 52... Ra2 $2 {[%emt 0:00:17]} (52... Rxc3+ 53. Kxc3 Kc7) 53. Kc4 {[%emt 0:00:12]} Be1 {[%emt 0:00:46]} 54. Rb3 {[%emt 0:00:06] Strongly threatening Kc5.} Kc7 $2 {[%emt 0:00:08]} (54... Kd6 {was worth a try.} 55. Rb6+ Kc7) 55. Kd5 {[%emt 0:00:07]} Ra5+ {[%emt 0:00:17]} (55... Kb8 $142 56. Ke6 Ka7 57. Kxf5 Rf2+ 58. Ke6 Rf8) 56. Ke6 {[%emt 0:00:01]} Bd2 {[%emt 0:01:52]} 57. d5 {[%emt 0:00:02][%cal Bd4d5,Bd5d6][%mdl 32] White mates.} f4 {[%emt 0:00:02]} 58. d6+ {[%emt 0:00:09]} Kd8 {[%emt 0:00:24]} 59. Bc6 {[%emt 0:00:19][%cal Rb3b8]} Kc8 {[%emt 0:00:01]} 60. Bd7+ {[%emt 0:00:14] White took control after the opening.  Weighted Error Value: White=0.31/Black=0.50} 1-0

[Event "Chinese League Div-A Rapid 2022"]
[Site "Fuling,Chongqing"]
[Date "2022.09.11"]
[Round "5.20"]
[White "Wang, Chuqiao"]
[Black "Chu, Ruotong"]
[Result "1/2-1/2"]
[ECO "D48"]
[WhiteElo "2037"]
[BlackElo "2185"]
[Annotator "RC"]
[PlyCount "40"]
[EventDate "2022.09.07"]
[EventType "team-tourn"]
[EventCountry "CHN"]
[SourceTitle "playchess.com"]
[Source "ChessBase"]
[SourceQuality "1"]
[TimeControl "1500+10"]

1. d4 {[%emt 0:00:02]} d5 {[%emt 0:00:01]} 2. c4 {[%emt 0:00:02]} dxc4 {[%emt 0:00:01]} 3. Nf3 {[%emt 0:00:02]} Nf6 {[%emt 0:00:02]} 4. e3 {[%emt 0:00:02]} e6 {[%emt 0:00:02]} 5. Bxc4 {[%emt 0:00:03]} a6 {[%emt 0:00:03]} 6. Nc3 {[%emt 0:00:04]} c5 {[%emt 0:00:41]} 7. O-O {[%emt 0:00:21]} b5 {[%emt 0:01:19]} 8. Bd3 {[%emt 0:01:05]} Bb7 {[%emt 0:00:12]} 9. Qe2 {[%emt 0:01:56]} Nbd7 {[%emt 0:00:30]} 10. Rd1 {[%emt 0:00:25]} Qc7 {[%emt 0:02:42]} 11. Bd2 {[%emt 0:04:54]} Bd6 {[%emt 0:01:18]} 12. h3 {[%emt 0:00:28]} O-O {[%emt 0:01:48]} 13. Rac1 {[%emt 0:00:54]} Rac8 {[%emt 0:01:02]} 14. dxc5 {[%emt 0:00:20]} Nxc5 {[%emt 0:00:06]} 15. Nxb5 {[%emt 0:01:24]} axb5 {[%emt 0:01:38]} 16. b4 {[%emt 0:00:01]} Bxf3 {[%emt 0:00:35]} 17. gxf3 {[%emt 0:00:26]} Qa7 {[%emt 0:00:27]} 18. bxc5 {[%emt 0:00:24]} Rxc5 {[%emt 0:02:08]} 19. Rxc5 {[%emt 0:00:16]} Bxc5 {[%emt 0:04:44]} 20. Bxb5 {[%emt 0:02:50]} Qxa2 {[%emt 0:00:03]} 1/2-1/2